[Event "Super United Croatia GCT Blitz 2022"]
[Site "Zagreb"]
[Date "2022.07.23"]
[Round "8"]
[White "Firouzja, Alireza"]
[Black "Carlsen, Magnus"]
[Result "0-1"]
[ECO "D61"]
[WhiteElo "2793"]
[BlackElo "2864"]
[Annotator "TA"]
[PlyCount "88"]
[EventDate "2022.07.20"]
[EventType "tourn"]
[EventCountry "CRO"]
[SourceTitle "playchess.com"]
[Source "ChessBase"]
[SourceQuality "1"]
[TimeControl "300+2"]

{[%evp 17,88,0,9,0,25,0,14,0,0,0,0,0,3,0,-4,-5,-5,-5,29,20,20,17,20,18,77,0,0,0,14,0,87,0,0,0,0,-51,44,-261,-267,-353,-343,-345,-336,-311,-280,-310,-252,-377,-116,-108,-71,-60,-79,-216,-205,-213,-213,-215,-202,-357,-357,-356,-352,-364,-348,-364,-360,-392,-390,-685,-681,-667,-659]} 1. d4 {[%emt 0:00:01]} d5 {[%emt 0:00:01]} 2. c4 {[%emt 0:00:02]} c6 {[%emt 0:00:02]} 3. Nf3 {[%emt 0:00:04]} Nf6 {[%emt 0:00:02]} 4. Nc3 {[%emt 0:00:04]} e6 {[%emt 0:00:01]} 5. Bg5 {[%emt 0:00:07]} Be7 {[%emt 0:00:01]} 6. e3 {[%emt 0:00:03]} Nbd7 {[%emt 0:00:11]} 7. Qc2 {[%emt 0:00:13]} O-O {[%emt 0:00:05]} 8. Rd1 {[%emt 0:00:05]} b6 {[%emt 0:00:07] is the legacy move (8...h6).} 9. Be2 {[%emt 0:00:38]} Bb7 {[%emt 0:00:06]} 10. O-O {[%emt 0:00:03] D61: Queen's Gambit Declined: Classical: 7 Qc2.} h6 $5 {[%emt 0:00:04][%mdl 4] An interesting side line.} 11. Bh4 {[%emt 0:00:02]} Rc8 {[%emt 0:00:12]} 12. Qb1 {[%emt 0:00:25] The position is equal.} dxc4 {[%emt 0:00:23]} 13. Bxc4 {[%emt 0:00:04]} c5 {[%emt 0:00:01] [#]} 14. dxc5 $146 {[%emt 0:00:46]} ({Predecessor:} 14. Be2 Nd5 15. Bg3 cxd4 16. Nxd5 Bxd5 17. Nxd4 Nf6 18. Bf3 Qe8 19. Bxd5 Nxd5 20. Nf5 {1-0 (29) Olariu,C (1770)-Iordache,D (1755) Eforie Nord 2001}) 14... Rxc5 {[%emt 0:00:06]} 15. Bb5 {[%emt 0:00:07]} a6 {[%emt 0:01:23]} 16. Bxf6 {[%emt 0:00:29]} axb5 {[%emt 0:00:00]} 17. Ne5 {[%emt 0:00:09]} Bc8 {[%emt 0:01:01]} 18. Bxe7 {[%emt 0:00:26]} Qxe7 {[%emt 0:00:01]} 19. Nd3 {[%emt 0:00:00] Pair of Knights!} Rg5 {[%emt 0:00:15]} 20. a3 {[%emt 0:00:35]} Nc5 {[%emt 0:00:19]} (20... Bb7 $11 {remains equal.} 21. f3 Nc5) 21. Nf4 {[%emt 0:00:09]} (21. f4 $16 Rh5 22. Ne5) 21... Bb7 $11 {[%emt 0:00:02]} 22. f3 {[%emt 0:00:01]} Na4 {[%emt 0:00:02]} 23. Nce2 {[%emt 0:00:44]} Rc8 {[%emt 0:00:05]} (23... Rc5 $11) 24. e4 {[%emt 0:00:11]} (24. b4 $1 $16) 24... b4 {[%emt 0:00:09]} 25. Rd4 {[%emt 0:00:11]} Rb5 {[%emt 0:00:20]} 26. Qd3 {[%emt 0:00:05]} (26. Nd3 $1 $11) 26... Bc6 {[%emt 0:00:19]} (26... Ba6 $1 $15 27. axb4 e5) 27. Qd2 $2 {[%emt 0:00:08][%mdl 8192] [#]} (27. axb4 $1 $14 e5 28. Rc4 $1) 27... bxa3 $1 $19 {[%emt 0:00:14]} 28. Rxa4 {[%emt 0:00:02]} (28. bxa3 Rb2) 28... Rxb2 {[%emt 0:00:03]} 29. Qc3 {[%emt 0:00:02]} Bxa4 {[%emt 0:00:02]} 30. Qxc8+ {[%emt 0:00:01] [#]} Kh7 $1 {[%emt 0:00:01] Threatens to win with ...a2.} ({Weaker is} 30... Qf8 31. Qxf8+ Kxf8 32. Ra1 $15) 31. Qc3 {[%emt 0:00:03]} Bb5 {[%emt 0:00:06]} 32. Re1 {[%emt 0:00:02]} (32. Ra1 {was necessary.} Bxe2 33. Qxa3 Rb1+ 34. Kf2 Qh4+ 35. Ke3 Rxa1 36. Qxa1) 32... Qd6 $2 {[%emt 0:00:09]} (32... Bxe2 $19 {has better winning chances.} 33. Nxe2 b5) 33. e5 $17 {[%emt 0:00:02]} Qd2 {[%emt 0:00:01]} 34. Qxd2 {[%emt 0:00:01]} Rxd2 {[%emt 0:00:01]} 35. Nc3 {[%emt 0:00:02]} (35. Kf2 $17) 35... Bc4 $19 {[%emt 0:00:01] And now ...Rc2 would win.} 36. Ra1 {[%emt 0:00:03]} a2 {[%emt 0:00:01]} 37. Nfe2 {[%emt 0:00:03]} Bxe2 {[%emt 0:00:09]} 38. Rxa2 $2 {[%emt 0:00:00]} (38. Nxa2 {was forced.} Kg6 39. Nc3) 38... Rxa2 {[%emt 0:00:02]} 39. Nxa2 {[%emt 0:00:01][%mdl 4096] Endgame KB-KN} Bc4 {[%emt 0:00:01]} 40. Nb4 {[%emt 0:00:03]} Kg6 {[%emt 0:00:01]} 41. Kf2 {[%emt 0:00:03]} Kf5 {[%emt 0:00:01]} 42. Nc6 {[%emt 0:00:02]} Bd5 {[%emt 0:00:01]} 43. Nd8 {[%emt 0:00:03]} (43. Nb8) 43... Kxe5 {[%emt 0:00:01] Strongly threatening ...Kf6.} 44. Nxf7+ {[%emt 0:00:02]} Kd4 {[%emt 0:00:01] Weighted Error Value: White=0.49/Black=0.22 (precise)} 0-1

[Event "Super United Croatia GCT Blitz 2022"]
[Site "Zagreb"]
[Date "2022.07.23"]
[Round "8"]
[White "Nepomniachtchi, Ian"]
[Black "Topalov, Veselin"]
[Result "1-0"]
[ECO "C34"]
[WhiteElo "2766"]
[BlackElo "2728"]
[Annotator "TA"]
[PlyCount "89"]
[EventDate "2022.07.20"]
[EventType "tourn"]
[EventCountry "CRO"]
[SourceTitle "playchess.com"]
[Source "ChessBase"]
[SourceQuality "1"]
[TimeControl "300+2"]

{[%evp 10,89,-68,-52,-29,-23,-37,-30,0,-47,-59,-69,-46,-54,-58,-65,-41,-74,-19,-31,-43,-64,47,61,42,44,140,143,142,131,194,195,191,151,189,191,200,210,229,118,140,144,145,145,156,145,162,141,268,263,315,283,401,360,348,347,345,350,304,328,343,332,272,237,229,235,231,0,0,-197,-95,-107,0,0,0,0,0,-132,912,37,1960,1878]} 1. e4 {[%emt 0:00:01]} e5 {[%emt 0:00:01]} 2. f4 {[%emt 0:00:00]} exf4 {[%emt 0:00:02]} 3. Nf3 d6 {[%emt 0:00:04]} 4. Bc4 {[%emt 0:00:05]} h6 {[%emt 0:00:01]} 5. h4 {[%emt 0:00:03]} Nf6 {[%emt 0:00:09][%cal Bg8f6,Bf6h5,Bh5g3][%mdl 32]} 6. Nc3 {[%emt 0:00:01]} Nc6 {[%emt 0:00:01] C34: King's Gambit Accepted: 3 Nf3: 3...Nf6 and 3...d6.} 7. d4 {[%emt 0:00:01]} Nh5 $1 {[%emt 0:00:02]} 8. Nd5 {[%emt 0:00:05]} Bg4 {[%emt 0:00:07] Black has an edge.} 9. Qd3 {[%emt 0:00:08]} (9. Bxf4 $11 {is more appropriate.} Be7 10. g3) 9... Na5 $15 {[%emt 0:00:26] [#]} 10. Bb3 $146 {[%emt 0:00:11]} (10. Bxf4 $2 Nxc4 11. Qxc4 c6 $19) ({Predecessor:} 10. Nxf4 Nxc4 11. Qxc4 c6 12. Nxh5 Bxh5 13. Bd2 Qd7 14. O-O-O O-O-O 15. Rde1 Kb8 16. d5 {1-0 (57) Rosenzweig,V-Barzoi,C corr 1984}) 10... c6 {[%emt 0:00:13]} 11. Nxf4 {[%emt 0:00:05]} Ng3 {[%emt 0:00:19]} 12. Rh2 {[%emt 0:00:11]} Qe7 {[%emt 0:00:01]} 13. Nd2 {[%emt 0:00:06]} Nxb3 {[%emt 0:00:29]} (13... Nh5 $1 $17 {[%cal Rh5f4]} 14. Nxh5 Bxh5) 14. axb3 $11 {[%emt 0:00:02]} Nh5 {[%emt 0:00:10]} 15. Nc4 {[%emt 0:00:27]} g6 {[%emt 0:01:12]} (15... Nf6 $15) 16. Nxh5 $14 {[%emt 0:00:06]} gxh5 {[%emt 0:00:14]} 17. Bf4 {[%emt 0:00:02]} Qf6 {[%emt 0:00:01]} (17... Rd8 $1 $14) 18. g3 $16 {[%emt 0:00:04]} Be7 {[%emt 0:00:16]} 19. Nb6 $36 {[%emt 0:00:46][%mdl 2048] White is in control.} Rd8 {[%emt 0:00:14]} (19... Rb8 $16 {might work better.} 20. e5 (20. Rxa7 O-O $16) 20... Qe6) 20. Rxa7 $18 {[%emt 0:00:02]} O-O {[%emt 0:00:02]} 21. Kd2 {[%emt 0:00:05]} Rfe8 {[%emt 0:00:21]} 22. Rxb7 {[%emt 0:00:06]} Bf8 {[%emt 0:00:05]} 23. Rf2 {[%emt 0:00:24]} Qg6 {[%emt 0:00:01]} 24. Na4 {[%emt 0:00:32]} ({White should play} 24. Be3 $18) 24... Rxe4 {[%emt 0:00:10] And now ...Bg7 would win.} 25. Nc3 {[%emt 0:00:01]} Ree8 {[%emt 0:00:24] [#]} 26. Qxg6+ {[%emt 0:00:08]} fxg6 {[%emt 0:00:01]} 27. d5 {[%emt 0:00:02]} c5 {[%emt 0:00:04]} 28. Nb5 {[%emt 0:00:03]} Re4 {[%emt 0:00:09]} (28... Bg7 $16 29. Rh2 (29. Nxd6 Rf8 $14) (29. Bxd6 Bd4 $16) 29... Rf8) 29. c4 {[%emt 0:00:11]} Rde8 {[%emt 0:00:29]} 30. Bxd6 {[%emt 0:00:02] Active counter play!} Bg7 {[%emt 0:00:01] [#]} (30... Bf5 $142) 31. Rxg7+ $1 {[%emt 0:00:06]} Kxg7 {[%emt 0:00:01]} 32. Bxc5 {[%emt 0:00:01]} Re2+ {[%emt 0:00:01]} 33. Rxe2 {[%emt 0:00:02]} Rxe2+ {[%emt 0:00:01][%mdl 4096] Endgame KRB-KBN} 34. Kc3 {[%emt 0:00:05]} g5 {[%emt 0:00:01]} 35. Bd4+ {[%emt 0:00:10]} Kg6 {[%emt 0:00:01]} 36. c5 {[%emt 0:00:01]} Rg2 {[%emt 0:00:04]} 37. Be5 {[%emt 0:00:02]} Kf5 {[%emt 0:00:01]} 38. Bb8 {[%emt 0:00:15]} (38. Bd6 $18) 38... Ke4 $11 {[%emt 0:00:01]} 39. d6 $2 {[%emt 0:00:32]} (39. hxg5 hxg5 40. Bd6 Kxd5 $15) (39. Bd6 $11) 39... Rxg3+ {[%emt 0:00:01]} (39... Kd5 $19 {is more deadly.} 40. d7 Bxd7) 40. Kb4 $17 {[%emt 0:00:01] aiming for Nc3+.} gxh4 {[%emt 0:00:05]} ({Better is} 40... Bd7 $17 41. c6 Bxc6) 41. c6 $11 {[%emt 0:00:06] Hoping for d7.} Rd3 {[%emt 0:00:01] ...h3 is the strong threat.} 42. Kc5 {[%emt 0:00:13] Black must now prevent d7.} ({Wrong is} 42. d7 $2 {[#]} Bxd7 $1 43. Nc3+ Kf3 $19) 42... Rd5+ {[%emt 0:00:01]} 43. Kb6 {[%emt 0:00:01]} (43. Kb4 $11 Rd2 44. Kc5 (44. d7 $2 Bxd7 45. Nc3+ Kf3 $19) 44... Rd5+ 45. Kb4) 43... h3 $2 {[%emt 0:00:03][%mdl 8192]} (43... Kf3 $17 44. Kc7 (44. d7 $2 Bxd7 45. Na7 h3 $19) 44... h3) 44. d7 $2 {[%emt 0:00:00]} (44. Nc3+ $18 Kd4 45. Nxd5) 44... Bxd7 $2 {[%emt 0:00:01][%mdl 8192]} 45. Nc3+ {[%emt 0:00:10] Weighted Error Value: White=0.57/Black=0.33} 1-0

[Event "Super United Croatia GCT Blitz 2022"]
[Site "Zagreb"]
[Date "2022.07.23"]
[Round "8"]
[White "Vachier-Lagrave, Maxime"]
[Black "So, Wesley"]
[Result "1/2-1/2"]
[ECO "E05"]
[WhiteElo "2760"]
[BlackElo "2773"]
[Annotator "TA"]
[PlyCount "132"]
[EventDate "2022.07.20"]
[EventType "tourn"]
[EventCountry "CRO"]
[SourceTitle "playchess.com"]
[Source "ChessBase"]
[SourceQuality "1"]
[TimeControl "300+2"]

{[%evp 22,132,11,12,5,4,12,1,6,4,3,8,8,3,7,0,0,0,0,0,0,0,1,0,8,13,6,4,23,7,22,5,11,1,5,0,7,0,17,0,18,0,0,-89,-43,-29,0,-1,0,0,-4,-64,-60,-87,-85,-83,-27,-52,-52,-52,-45,-45,0,0,0,0,0,0,0,0,0,0,0,0,0,0,-2,-44,-43,-52,-52,-52,0,0,0,0,0,0,0,0,0,-28,-28,-45,0,-28,0,-45,-45,-54,0,0,0,0,0,0,0,0,0,0,0,0,0]} 1. c4 {[%emt 0:00:01]} Nf6 {[%emt 0:00:01]} 2. Nf3 {[%emt 0:00:05]} e6 {[%emt 0:00:04]} 3. g3 {[%emt 0:00:05]} d5 {[%emt 0:00:03]} 4. Bg2 {[%emt 0:00:01]} Be7 {[%emt 0:00:01]} 5. O-O {[%emt 0:00:03]} O-O {[%emt 0:00:02]} 6. d4 {[%emt 0:00:03]} dxc4 {[%emt 0:00:01]} 7. Qc2 {[%emt 0:00:01]} a6 {[%emt 0:00:06]} 8. a4 {[%emt 0:00:02]} Bd7 {[%emt 0:00:02]} 9. Qxc4 {[%emt 0:00:01]} Bc6 {[%emt 0:00:01]} 10. Bf4 {[%emt 0:00:02]} Bd6 {[%emt 0:00:02]} 11. Bg5 {[%emt 0:00:04]} Nbd7 {[%emt 0:00:02]} 12. Nc3 {[%emt 0:00:15][%cal Oe2e4]} h6 {[%emt 0:00:02] E05: Open Catalan: 5 Nf3 Be7.} 13. Bxf6 {[%emt 0:00:01]} Nxf6 {[%emt 0:00:01]} 14. e3 {[%emt 0:00:07]} a5 {[%emt 0:00:12]} 15. Ne1 {[%emt 0:00:24]} Bxg2 {[%emt 0:00:07]} 16. Kxg2 {[%emt 0:00:03]} c6 {[%emt 0:00:01]} 17. Nf3 {[%emt 0:00:16]} Qe7 {[%emt 0:00:11]} 18. Rfd1 {[%emt 0:00:07]} Rfd8 {[%emt 0:00:03]} 19. Rac1 {[%emt 0:00:03] [#]} Rac8 $146 {[%emt 0:00:18]} ({Predecessor:} 19... Bb4 20. Qe2 Rac8 21. Rc2 Nd7 22. Na2 Bd6 23. h4 Qe8 {½-½ (42) Mannermaa,J (2454)-Kharlamov,V (2496) ICCF email 2017}) 20. Qb3 {[%emt 0:00:13]} Bb4 {[%emt 0:00:07]} 21. Ne5 {[%emt 0:00:05]} c5 {[%emt 0:00:29]} 22. Nb5 {[%emt 0:00:06]} cxd4 {[%emt 0:00:09]} 23. Rxc8 {[%emt 0:00:05]} Rxc8 {[%emt 0:00:00]} 24. Rxd4 {[%emt 0:00:01]} Rd8 {[%emt 0:00:56]} (24... Bc5 $5 {[%cal Rc5d4]} 25. Qc2 b6 $11) 25. Qc4 {[%emt 0:00:34]} Rxd4 {[%emt 0:00:07]} 26. Qxd4 {[%emt 0:00:04]} Bc5 {[%emt 0:00:17]} 27. Qd3 {[%emt 0:00:01]} b6 {[%emt 0:00:05]} 28. e4 {[%emt 0:00:14]} g5 {[%emt 0:00:07]} 29. f3 {[%emt 0:00:07]} Kg7 {[%emt 0:00:03]} 30. Nc4 {[%emt 0:00:29]} g4 {[%emt 0:00:21]} 31. fxg4 {[%emt 0:00:13]} Nxg4 {[%emt 0:00:03]} 32. e5 {[%emt 0:00:09] [#]} (32. h3 $11 {remains equal.} Nf2 33. Qc3+ Qf6 34. Qxf6+ Kxf6 35. e5+ Kg6 36. h4) 32... Qb7+ {[%emt 0:00:42]} (32... Qg5 $1 $17 {[%cal Rg5c1] White must now prevent ...Qc1.} 33. Qe4 Nf2) 33. Qf3 $15 {[%emt 0:00:01]} Qxf3+ (33... Qd5 {seems wilder.} 34. b3 Qxf3+ 35. Kxf3 Nxh2+ 36. Kf4 h5) 34. Kxf3 {[%emt 0:00:01]} Nxh2+ $11 {[%emt 0:00:02][%mdl 4096] Endgame KBN-KNN} 35. Kf4 {[%emt 0:00:01]} h5 {[%emt 0:00:20]} 36. Kg5 {[%emt 0:00:03]} (36. Nbd6 $11) 36... Nf1 $15 {[%emt 0:00:02]} 37. Kxh5 {[%emt 0:00:01]} Nxg3+ {[%emt 0:00:05]} 38. Kg4 {[%emt 0:00:02]} Ne2 {[%emt 0:00:02]} (38... Nf5 $17) 39. Na7 {[%emt 0:00:47]} Nc1 $1 {[%emt 0:00:22]} 40. Nc8 {[%emt 0:00:01]} Nd3 {[%emt 0:00:01]} 41. Kf3 $1 {[%emt 0:00:02]} Kg6 {[%emt 0:00:11]} (41... Bg1 $5 {[%cal Rg1h2]}) 42. Ke4 {[%emt 0:00:01]} Nf2+ {[%emt 0:00:01]} 43. Kf4 {[%emt 0:00:00]} Bd4 {[%emt 0:00:15]} 44. b3 {[%emt 0:00:19]} Bc5 {[%emt 0:00:01]} 45. N8xb6 {[%emt 0:00:03]} Nd3+ {[%emt 0:00:06]} 46. Ke4 {[%emt 0:00:04]} Nc1 {[%emt 0:00:02]} 47. Nd7 {[%emt 0:00:04]} Bb4 {[%emt 0:00:01]} 48. Nb8 {[%emt 0:00:10]} Nxb3 {[%emt 0:00:02]} 49. Nc6 {[%emt 0:00:01]} Nc5+ {[%emt 0:00:01]} 50. Kf4 {[%emt 0:00:02]} Nxa4 {[%emt 0:00:07]} 51. N6xa5 {[%emt 0:00:01]} Nc5 {[%emt 0:00:04]} (51... Nc3 $15) 52. Nc6 $11 {[%emt 0:00:03]} Bc3 {[%emt 0:00:02]} 53. Nd6 {[%emt 0:00:09]} Bb2 {[%emt 0:00:06]} 54. Ne7+ {[%emt 0:00:04]} Kg7 {[%emt 0:00:01] [#] And now ...Nd3+ would win.} 55. Nc6 {[%emt 0:00:01]} Bc1+ {[%emt 0:00:02]} 56. Kg4 {[%emt 0:00:04]} Nd7 {[%emt 0:00:03]} 57. Nc4 {[%emt 0:00:05]} Nc5 {[%emt 0:00:05]} 58. Nd6 {[%emt 0:00:05]} Be3 {[%emt 0:00:01]} 59. Nc4 {[%emt 0:00:01]} Bg1 {[%emt 0:00:01]} 60. Nd6 {[%emt 0:00:03]} Bh2 {[%emt 0:00:01]} ({Black should play} 60... Nd7 $15) 61. Nd8 {[%emt 0:00:13] The position is equal.} Bxe5 {[%emt 0:00:06]} 62. N6xf7 {[%emt 0:00:03]} Bf6 {[%emt 0:00:02]} 63. Nxe6+ {[%emt 0:00:01]} Nxe6 {[%emt 0:00:01]} 64. Nd6 {[%emt 0:00:01]} Be7 {[%emt 0:00:01]} 65. Nf5+ {[%emt 0:00:01]} Kf6 {[%emt 0:00:00]} 66. Nxe7 {[%emt 0:00:01]} Kxe7 {Weighted Error Value: White=0.12 (very precise) /Black=0.10 (very precise)} 1/2-1/2

[Event "Super United Croatia GCT Blitz 2022"]
[Site "Zagreb"]
[Date "2022.07.23"]
[Round "8"]
[White "Mamedyarov, Shakhriyar"]
[Black "Van Foreest, Jorden"]
[Result "1/2-1/2"]
[ECO "D94"]
[WhiteElo "2759"]
[BlackElo "2678"]
[Annotator "TA"]
[PlyCount "90"]
[EventDate "2022.07.20"]
[EventType "tourn"]
[EventCountry "CRO"]
[SourceTitle "playchess.com"]
[Source "ChessBase"]
[SourceQuality "1"]
[TimeControl "300+2"]

{[%evp 19,90,0,20,16,27,-14,-18,-20,-17,-14,-13,0,-16,-16,0,-29,-22,-29,-17,-37,-42,-42,-54,-50,-46,-57,0,0,0,0,0,0,0,0,0,0,0,0,0,0,0,0,0,0,0,0,0,0,0,0,0,0,0,0,0,0,0,0,0,0,0,0,0,0,0,0,0,0,0,0,0,0,0]} 1. d4 {[%emt 0:00:01]} Nf6 {[%emt 0:00:03]} 2. c4 {[%emt 0:00:00]} g6 {[%emt 0:00:02]} 3. Nc3 {[%emt 0:00:05]} d5 {[%emt 0:00:04]} 4. Nf3 {[%emt 0:00:05]} Bg7 {[%emt 0:00:03]} 5. e3 {[%emt 0:00:01]} O-O {[%emt 0:00:09]} 6. cxd5 {[%emt 0:00:02]} Nxd5 {[%emt 0:00:01]} 7. Bc4 {[%emt 0:00:01]} Nxc3 {[%emt 0:00:10]} 8. bxc3 {[%emt 0:00:01]} c5 {[%emt 0:00:01]} 9. O-O {[%emt 0:00:01]} Qc7 $1 {[%emt 0:00:04] The main line 9...Qc7 scores better than 9...Nc6.} 10. Qe2 {[%emt 0:00:01]} Bg4 {[%emt 0:00:11]} 11. Rb1 {[%emt 0:00:29] D94: Grünfeld: 4 Nf3 Bg7 5 e3.} Nd7 {[%emt 0:00:03]} 12. Ba3 {[%emt 0:00:32] [#]} Rac8 $146 {[%emt 0:00:15] Threatens to win with ...cxd4.} ({Predecessor:} 12... e5 13. h3 Qa5 14. hxg4 Qxa3 15. Rxb7 Nb6 16. Ng5 Qxc3 17. Bxf7+ Kh8 18. Ne6 exd4 19. exd4 cxd4 20. Bxg6 hxg6 21. Rxg7 {1-0 (34) Sivuk,V (2482)-Janczarski,M (2328) Krakow 2013}) 13. Bb5 {[%emt 0:00:10]} Nf6 {[%emt 0:01:09]} 14. h3 {[%emt 0:00:08]} ({Of course not} 14. dxc5 Ne4 15. Rbc1 Rcd8 $17) 14... Bf5 {[%emt 0:00:10]} 15. Bd3 {[%emt 0:00:04]} Bxd3 {[%emt 0:00:03]} 16. Qxd3 {[%emt 0:00:01]} Rfd8 {[%emt 0:00:04]} 17. Qb5 {[%emt 0:00:41]} b6 {[%emt 0:00:10]} 18. Rbc1 {[%emt 0:00:16]} (18. Rfd1 {looks sharper.} Ne4 19. Rbc1 e6 20. Nd2) 18... Qd7 {[%emt 0:00:07]} (18... Ne4 {seems wilder.} 19. Rfd1 Qd7 20. c4 cxd4 21. Nxd4 Qc7) 19. Qxd7 {[%emt 0:00:03]} Rxd7 {[%emt 0:00:01]} 20. Rfd1 {[%emt 0:00:08]} Ne4 {[%emt 0:00:06]} 21. Nd2 {[%emt 0:00:06]} Nxd2 {[%emt 0:00:06]} 22. Rxd2 {[%emt 0:00:01]} cxd4 {[%emt 0:00:01]} (22... e5 $15) 23. cxd4 $11 {[%emt 0:00:02] The position is equal.} Rxc1+ {[%emt 0:00:01]} 24. Bxc1 $15 {[%emt 0:00:01][%mdl 4096] Endgame KRB-KRB} Rc7 {[%emt 0:00:01]} 25. Bb2 {[%emt 0:00:03]} e6 {[%emt 0:00:11]} 26. Kf1 {[%emt 0:00:06]} Bf8 {[%emt 0:00:07]} 27. d5 {[%emt 0:00:10]} exd5 {[%emt 0:00:04]} 28. Rxd5 {[%emt 0:00:01]} f5 {[%emt 0:00:01]} 29. Rd8 {[%emt 0:00:23]} Kf7 {[%emt 0:00:03]} 30. Ra8 {[%emt 0:00:09]} Bg7 {[%emt 0:00:20]} 31. Bxg7 {[%emt 0:00:04]} Kxg7 $11 {[%emt 0:00:01] KR-KR} 32. g4 {[%emt 0:00:03]} Kf6 {[%emt 0:00:05]} 33. Kg2 {[%emt 0:00:03]} fxg4 {[%emt 0:00:11]} 34. hxg4 {[%emt 0:00:01]} Rc4 {[%emt 0:00:01]} 35. Rxa7 {[%emt 0:00:09]} Rxg4+ {[%emt 0:00:01]} 36. Kh3 {[%emt 0:00:04]} h5 {[%emt 0:00:02]} 37. a4 {[%emt 0:00:17]} Rb4 {[%emt 0:00:02]} 38. Ra6 {[%emt 0:00:02]} Kg7 {[%emt 0:00:03]} 39. a5 {[%emt 0:00:01]} bxa5 {[%emt 0:00:01]} 40. Rxa5 {[%emt 0:00:00]} Kh6 {[%emt 0:00:02]} 41. Ra1 {[%emt 0:00:02]} Rb6 {[%emt 0:00:01]} 42. Ra2 {[%emt 0:00:01]} Rb5 {[%emt 0:00:01]} 43. Ra1 {[%emt 0:00:00]} Rb6 {[%emt 0:00:01]} 44. Ra2 {[%emt 0:00:01]} Rb5 {[%emt 0:00:00]} 45. Ra1 {[%emt 0:00:00]} Rb6 {[%emt 0:00:01] Weighted Error Value: White=0.03 (flawless) /Black=0.03 (flawless)} 1/2-1/2